[Event "Early-Titled-Tuesday-Blitz-October-17-2023"]
[Site "Chess.com"]
[Date "2023.10.17"]
[Round "4"]
[White "Irina_Mikhaylova"]
[Black "dianamirza"]
[Result "1-0"]
[WhiteElo "2305"]
[BlackElo "2021"]
[TimeControl "180+1"]
[EndTime "8:39:04 PDT"]
[Termination "Irina_Mikhaylova won by resignation"]

1. Nf3 {[%clk 0:03:00.9]} 1... d5 {[%clk 0:02:59.4]} 2. c4 {[%clk 0:03:01.1]}
2... c6 {[%clk 0:02:55.6]} 3. cxd5 {[%clk 0:03:01.2]} 3... cxd5 {[%clk
0:02:55.7]} 4. d4 {[%clk 0:03:02.1]} 4... Nc6 {[%clk 0:02:54.8]} 5. Nc3 {[%clk
0:03:02.5]} 5... Nf6 {[%clk 0:02:54.5]} 6. Bf4 {[%clk 0:03:02.7]} 6... Bf5
{[%clk 0:02:53.8]} 7. e3 {[%clk 0:03:02.8]} 7... e6 {[%clk 0:02:54.1]} 8. Qb3
{[%clk 0:03:03.1]} 8... Qb6 {[%clk 0:02:52.8]} 9. Bb5 {[%clk 0:03:03.2]} 9...
Be7 {[%clk 0:02:37]} 10. Ne5 {[%clk 0:03:03.1]} 10... Rc8 {[%clk 0:02:21.1]} 11.
O-O {[%clk 0:02:58.9]} 11... O-O {[%clk 0:02:18]} 12. Na4 {[%clk 0:02:59.1]}
12... Qa5 {[%clk 0:02:01.1]} 13. Bxc6 {[%clk 0:02:42]} 13... bxc6 {[%clk
0:01:59.9]} 14. Rfc1 {[%clk 0:02:42.6]} 14... c5 {[%clk 0:01:26.7]} 15. dxc5
{[%clk 0:02:40.7]} 15... Bxc5 {[%clk 0:01:22.4]} 16. a3 {[%clk 0:02:24.6]} 16...
Ne4 {[%clk 0:01:16.4]} 17. Nxc5 {[%clk 0:02:13.7]} 17... Nxc5 {[%clk 0:01:15]}
18. Qd1 {[%clk 0:02:13.8]} 18... Qb5 {[%clk 0:01:09.4]} 19. b4 {[%clk
0:02:08.3]} 19... Nd3 {[%clk 0:01:05]} 20. Nxd3 {[%clk 0:02:07.9]} 20... Qxd3
{[%clk 0:01:05.1]} 21. Qxd3 {[%clk 0:01:51.1]} 21... Bxd3 {[%clk 0:01:06]} 22.
Bd6 {[%clk 0:01:51.2]} 22... Rfd8 {[%clk 0:01:05.4]} 23. Be7 {[%clk 0:01:51.4]}
23... Re8 {[%clk 0:01:00.2]} 24. Bc5 {[%clk 0:01:51.1]} 24... Rc7 {[%clk
0:00:59.6]} 25. Rc3 {[%clk 0:01:47.8]} 25... Rec8 {[%clk 0:00:57.5]} 26. Rxd3
{[%clk 0:01:47.2]} 26... f6 {[%clk 0:00:50.7]} 27. f4 {[%clk 0:01:42.8]} 27...
Kf7 {[%clk 0:00:42.4]} 28. f5 {[%clk 0:01:41]} 28... e5 {[%clk 0:00:35.8]} 29.
Rxd5 {[%clk 0:01:40.5]} 1-0

[Event "Early-Titled-Tuesday-Blitz-October-17-2023"]
[Site "Chess.com"]
[Date "2023.10.17"]
[Round "4"]
[White "adotand"]
[Black "Russian_berezka"]
[Result "1-0"]
[WhiteElo "2866"]
[BlackElo "2665"]
[TimeControl "180+1"]
[EndTime "8:39:08 PDT"]
[Termination "adotand won by checkmate"]

1. Nf3 {[%clk 0:02:57.3]} 1... Nf6 {[%clk 0:02:59.2]} 2. c4 {[%clk 0:02:57.7]}
2... e6 {[%clk 0:02:59.2]} 3. b3 {[%clk 0:02:56.4]} 3... d5 {[%clk 0:02:56.4]}
4. Bb2 {[%clk 0:02:53.4]} 4... c5 {[%clk 0:02:56]} 5. e3 {[%clk 0:02:53.9]} 5...
Nc6 {[%clk 0:02:55.5]} 6. cxd5 {[%clk 0:02:52.7]} 6... exd5 {[%clk 0:02:56.4]}
7. Bb5 {[%clk 0:02:53]} 7... Bd6 {[%clk 0:02:42.6]} 8. h3 {[%clk 0:02:49.6]}
8... O-O {[%clk 0:02:41.3]} 9. O-O {[%clk 0:02:50]} 9... a6 {[%clk 0:02:26.1]}
10. Be2 {[%clk 0:02:48.5]} 10... b5 {[%clk 0:02:07.5]} 11. a4 {[%clk 0:02:39.9]}
11... Rb8 {[%clk 0:02:05]} 12. axb5 {[%clk 0:02:35.4]} 12... axb5 {[%clk
0:02:05.9]} 13. Nc3 {[%clk 0:02:35.9]} 13... b4 {[%clk 0:01:59.9]} 14. Nb5
{[%clk 0:02:35.1]} 14... Be7 {[%clk 0:01:59.4]} 15. d4 {[%clk 0:02:33]} 15...
Ne4 {[%clk 0:01:57.3]} 16. dxc5 {[%clk 0:02:22.6]} 16... Bxc5 {[%clk 0:01:57.4]}
17. Rc1 {[%clk 0:02:19.9]} 17... Ba6 {[%clk 0:01:42]} 18. Nbd4 {[%clk
0:02:19.4]} 18... Bxe2 {[%clk 0:01:39.7]} 19. Nxe2 {[%clk 0:02:15.7]} 19... Ne7
{[%clk 0:01:16.9]} 20. Nf4 {[%clk 0:02:02.3]} 20... Bd6 {[%clk 0:01:12.8]} 21.
Nh5 {[%clk 0:01:57.4]} 21... f6 {[%clk 0:01:10.3]} 22. Nd4 {[%clk 0:01:54]}
22... Qd7 {[%clk 0:01:08.2]} 23. Nf4 {[%clk 0:01:45]} 23... Bxf4 {[%clk
0:01:07.2]} 24. exf4 {[%clk 0:01:45.9]} 24... Rbc8 {[%clk 0:01:03.7]} 25. Qd3
{[%clk 0:01:43]} 25... Rxc1 {[%clk 0:00:52]} 26. Rxc1 {[%clk 0:01:42.3]} 26...
Rc8 {[%clk 0:00:52.9]} 27. Rxc8+ {[%clk 0:01:37.9]} 27... Qxc8 {[%clk
0:00:53.8]} 28. Qb5 {[%clk 0:01:36.6]} 28... Qc7 {[%clk 0:00:39.1]} 29. Qe8#
{[%clk 0:01:34.3]} 1-0

[Event "Early-Titled-Tuesday-Blitz-October-17-2023"]
[Site "Chess.com"]
[Date "2023.10.17"]
[Round "4"]
[White "jeetjain"]
[Black "McCarthyStone"]
[Result "0-1"]
[WhiteElo "2567"]
[BlackElo "2389"]
[TimeControl "180+1"]
[EndTime "8:39:13 PDT"]
[Termination "McCarthyStone won by resignation"]

1. Nf3 {[%clk 0:03:00.3]} 1... d6 {[%clk 0:02:57.7]} 2. b3 {[%clk 0:03:00.3]}
2... e5 {[%clk 0:02:58.1]} 3. Bb2 {[%clk 0:02:59.6]} 3... g6 {[%clk 0:02:55.2]}
4. g3 {[%clk 0:02:58.5]} 4... Bg7 {[%clk 0:02:55.5]} 5. Bg2 {[%clk 0:02:58.6]}
5... Ne7 {[%clk 0:02:56.4]} 6. d3 {[%clk 0:02:57]} 6... O-O {[%clk 0:02:56.7]}
7. e4 {[%clk 0:02:55.5]} 7... c5 {[%clk 0:02:56.6]} 8. O-O {[%clk 0:02:52.8]}
8... Nbc6 {[%clk 0:02:56.5]} 9. h3 {[%clk 0:02:47]} 9... h6 {[%clk 0:02:56.5]}
10. Nbd2 {[%clk 0:02:46.2]} 10... Be6 {[%clk 0:02:56.4]} 11. c3 {[%clk
0:02:46.1]} 11... Qd7 {[%clk 0:02:55.9]} 12. Kh2 {[%clk 0:02:46]} 12... f5
{[%clk 0:02:54.8]} 13. exf5 {[%clk 0:02:45.1]} 13... Bxf5 {[%clk 0:02:55.6]} 14.
Ne4 {[%clk 0:02:44.3]} 14... b6 {[%clk 0:02:52.6]} 15. Re1 {[%clk 0:02:44.3]}
15... d5 {[%clk 0:02:50.9]} 16. Ned2 {[%clk 0:02:44.7]} 16... Bxd3 {[%clk
0:02:51]} 17. Nf1 {[%clk 0:02:41.9]} 17... e4 {[%clk 0:02:50.2]} 18. Nh4 {[%clk
0:02:41]} 18... g5 {[%clk 0:02:37.7]} 19. Nf3 {[%clk 0:02:25.4]} 19... exf3
{[%clk 0:02:32.6]} 20. Bxf3 {[%clk 0:02:24.2]} 20... Qf5 {[%clk 0:02:24]} 21.
Nd2 {[%clk 0:02:23]} 21... Ne5 {[%clk 0:02:20.3]} 22. Re3 {[%clk 0:02:20.4]}
22... Nxf3+ {[%clk 0:02:05]} 23. Rxf3 {[%clk 0:02:15.2]} 23... Qg6 {[%clk
0:02:04.9]} 24. Rxf8+ {[%clk 0:02:08.3]} 24... Rxf8 {[%clk 0:02:05.8]} 25. f3
{[%clk 0:02:08.9]} 25... Re8 {[%clk 0:01:50.2]} 26. Qg1 {[%clk 0:02:07.3]} 26...
Nf5 {[%clk 0:01:43]} 27. Re1 {[%clk 0:02:06.7]} 27... h5 {[%clk 0:01:30.6]} 28.
a4 {[%clk 0:01:52]} 28... h4 {[%clk 0:01:29]} 29. g4 {[%clk 0:01:52.2]} 29...
Qd6+ {[%clk 0:01:24.2]} 30. Kh1 {[%clk 0:01:52.9]} 30... Ng3+ {[%clk 0:01:24.3]}
31. Kg2 {[%clk 0:01:52.7]} 31... Re2+ {[%clk 0:01:16.3]} 32. Rxe2 {[%clk
0:01:52.7]} 32... Nxe2 {[%clk 0:01:17.2]} 33. Qf2 {[%clk 0:01:51.5]} 33... Bxc3
{[%clk 0:01:11]} 34. Bxc3 {[%clk 0:01:50.7]} 34... Nxc3 {[%clk 0:01:11.9]} 35.
Qe3 {[%clk 0:01:50.7]} 35... Qg3+ {[%clk 0:01:12.1]} 36. Kh1 {[%clk 0:01:50.6]}
36... Qxh3+ {[%clk 0:01:08.4]} 37. Kg1 {[%clk 0:01:50.2]} 37... Ne2+ {[%clk
0:01:07.3]} 38. Kf2 {[%clk 0:01:48.4]} 38... Qg3+ {[%clk 0:01:07.5]} 0-1

[Event "Early-Titled-Tuesday-Blitz-October-17-2023"]
[Site "Chess.com"]
[Date "2023.10.17"]
[Round "4"]
[White "Polish_fighter3000"]
[Black "karinachess1"]
[Result "1-0"]
[WhiteElo "3037"]
[BlackElo "2609"]
[TimeControl "180+1"]
[EndTime "8:39:14 PDT"]
[Termination "Polish_fighter3000 won by resignation"]

1. c3 {[%clk 0:03:00.9]} 1... d5 {[%clk 0:02:57.8]} 2. f4 {[%clk 0:02:58.9]}
2... Nf6 {[%clk 0:02:53.9]} 3. Nf3 {[%clk 0:02:58.7]} 3... g6 {[%clk 0:02:51.5]}
4. e3 {[%clk 0:02:58]} 4... Bg7 {[%clk 0:02:51.7]} 5. d4 {[%clk 0:02:57.3]} 5...
O-O {[%clk 0:02:51.5]} 6. Bd3 {[%clk 0:02:57.5]} 6... c5 {[%clk 0:02:50.1]} 7.
Ne5 {[%clk 0:02:57.6]} 7... b6 {[%clk 0:02:50.2]} 8. Qe2 {[%clk 0:02:56.3]} 8...
a5 {[%clk 0:02:50.3]} 9. a4 {[%clk 0:02:52.9]} 9... Ba6 {[%clk 0:02:49.6]} 10.
O-O {[%clk 0:02:49.3]} 10... Bxd3 {[%clk 0:02:46.9]} 11. Nxd3 {[%clk 0:02:50.2]}
11... Nbd7 {[%clk 0:02:40.7]} 12. Nd2 {[%clk 0:02:47.5]} 12... Qc7 {[%clk
0:02:29.6]} 13. Qf3 {[%clk 0:02:44.4]} 13... e6 {[%clk 0:02:27.3]} 14. g4 {[%clk
0:02:44.4]} 14... Qb7 {[%clk 0:02:20.9]} 15. Qg2 {[%clk 0:02:40.2]} 15... Ne4
{[%clk 0:02:08.3]} 16. h4 {[%clk 0:02:32.2]} 16... Ndf6 {[%clk 0:01:28]} 17. g5
{[%clk 0:02:29.6]} 17... Nh5 {[%clk 0:01:17]} 18. Nxe4 {[%clk 0:02:24.1]} 18...
dxe4 {[%clk 0:01:17.9]} 19. dxc5 {[%clk 0:02:24.3]} 19... Qd5 {[%clk 0:01:10.3]}
20. Nf2 {[%clk 0:02:23.8]} 20... bxc5 {[%clk 0:01:03.3]} 21. Rd1 {[%clk
0:02:23.5]} 21... Qb3 {[%clk 0:00:55.1]} 22. Ra3 {[%clk 0:02:23.1]} 22... Qc2
{[%clk 0:00:39.4]} 23. Qxe4 {[%clk 0:02:14.7]} 23... Qe2 {[%clk 0:00:39.6]} 24.
Qd3 {[%clk 0:02:15.2]} 24... Qf3 {[%clk 0:00:39.4]} 25. e4 {[%clk 0:02:15.7]}
25... Qxd3 {[%clk 0:00:33.4]} 26. Rxd3 {[%clk 0:02:16.6]} 26... c4 {[%clk
0:00:30.5]} 27. Rd7 {[%clk 0:02:13.4]} 27... Rfd8 {[%clk 0:00:30.3]} 28. Rc7
{[%clk 0:02:13.7]} 28... Bf8 {[%clk 0:00:15.3]} 29. Ra1 {[%clk 0:02:12.5]} 29...
Bd6 {[%clk 0:00:12.7]} 30. Rxc4 {[%clk 0:02:12.4]} 30... Bxf4 {[%clk 0:00:13.6]}
31. Bxf4 {[%clk 0:02:04.8]} 31... Nxf4 {[%clk 0:00:14.5]} 32. e5 {[%clk
0:02:04.5]} 32... Rd2 {[%clk 0:00:13.8]} 33. Rxf4 {[%clk 0:02:03.8]} 1-0

[Event "Early-Titled-Tuesday-Blitz-October-17-2023"]
[Site "Chess.com"]
[Date "2023.10.17"]
[Round "4"]
[White "guillembaches"]
[Black "kritipatel"]
[Result "1/2-1/2"]
[WhiteElo "2513"]
[BlackElo "2134"]
[TimeControl "180+1"]
[EndTime "8:39:15 PDT"]
[Termination "Game drawn by agreement"]

1. d4 {[%clk 0:03:00.9]} 1... d5 {[%clk 0:02:58.6]} 2. Nf3 {[%clk 0:03:01.5]}
2... Nf6 {[%clk 0:02:58.2]} 3. Bg5 {[%clk 0:03:02.1]} 3... e6 {[%clk 0:02:56.6]}
4. Nbd2 {[%clk 0:03:00.9]} 4... Be7 {[%clk 0:02:56.1]} 5. e3 {[%clk 0:03:00.5]}
5... c5 {[%clk 0:02:55.8]} 6. c3 {[%clk 0:03:00.1]} 6... Nc6 {[%clk 0:02:55.4]}
7. Bd3 {[%clk 0:03:00.4]} 7... O-O {[%clk 0:02:52.8]} 8. Ne5 {[%clk 0:02:55.9]}
8... Nd7 {[%clk 0:02:35.4]} 9. Bxe7 {[%clk 0:02:52.7]} 9... Qxe7 {[%clk
0:02:26.2]} 10. f4 {[%clk 0:02:51.9]} 10... Ncxe5 {[%clk 0:02:15.3]} 11. dxe5
{[%clk 0:02:45.7]} 11... f6 {[%clk 0:02:14.6]} 12. exf6 {[%clk 0:02:43.8]} 12...
Rxf6 {[%clk 0:02:06.9]} 13. O-O {[%clk 0:02:39.1]} 13... e5 {[%clk 0:02:03.4]}
14. Qc2 {[%clk 0:02:21.4]} 14... e4 {[%clk 0:01:46.7]} 15. Be2 {[%clk
0:02:13.6]} 15... Nf8 {[%clk 0:01:45.6]} 16. c4 {[%clk 0:02:08.7]} 16... d4
{[%clk 0:01:34.4]} 17. Nxe4 {[%clk 0:01:58]} 17... Re6 {[%clk 0:01:23.3]} 18.
Bd3 {[%clk 0:01:48.2]} 18... dxe3 {[%clk 0:01:05.1]} 19. Rae1 {[%clk 0:01:47.8]}
19... b6 {[%clk 0:01:01.8]} 20. Rxe3 {[%clk 0:01:37.3]} 20... Bb7 {[%clk
0:00:59.5]} 21. Rfe1 {[%clk 0:01:34.1]} 21... Re8 {[%clk 0:00:58.7]} 22. Qe2
{[%clk 0:01:18.4]} 1/2-1/2

[Event "Early-Titled-Tuesday-Blitz-October-17-2023"]
[Site "Chess.com"]
[Date "2023.10.17"]
[Round "4"]
[White "AnaKuchava"]
[Black "LangesNasenhaar"]
[Result "0-1"]
[WhiteElo "2266"]
[BlackElo "2495"]
[TimeControl "180+1"]
[EndTime "8:39:21 PDT"]
[Termination "LangesNasenhaar won on time"]

1. d4 {[%clk 0:03:00.9]} 1... g6 {[%clk 0:02:58.8]} 2. Nf3 {[%clk 0:02:59.5]}
2... Bg7 {[%clk 0:02:58.9]} 3. c4 {[%clk 0:02:58]} 3... c5 {[%clk 0:02:59.4]} 4.
d5 {[%clk 0:02:57.9]} 4... d6 {[%clk 0:02:59.9]} 5. e4 {[%clk 0:02:56.6]} 5...
Nf6 {[%clk 0:03:00.3]} 6. Nc3 {[%clk 0:02:54.6]} 6... O-O {[%clk 0:03:00.8]} 7.
h3 {[%clk 0:02:48.8]} 7... e6 {[%clk 0:03:00.5]} 8. Bd3 {[%clk 0:02:46.5]} 8...
Nbd7 {[%clk 0:02:59.2]} 9. O-O {[%clk 0:02:45.7]} 9... e5 {[%clk 0:02:58.8]} 10.
Be3 {[%clk 0:02:38.3]} 10... h6 {[%clk 0:02:57.9]} 11. Qd2 {[%clk 0:02:23.3]}
11... Kh7 {[%clk 0:02:55.4]} 12. a3 {[%clk 0:02:10]} 12... Nh5 {[%clk
0:02:48.6]} 13. Ne1 {[%clk 0:01:26.3]} 13... f5 {[%clk 0:02:37.5]} 14. f3 {[%clk
0:01:18.7]} 14... Ng3 {[%clk 0:02:31.4]} 15. b4 {[%clk 0:00:56.4]} 15... Nxf1
{[%clk 0:02:26]} 16. Bxf1 {[%clk 0:00:57.3]} 16... b6 {[%clk 0:02:15.7]} 17. Nd3
{[%clk 0:00:28]} 17... Nf6 {[%clk 0:02:07.6]} 18. Rb1 {[%clk 0:00:17.8]} 18...
fxe4 {[%clk 0:02:04]} 19. fxe4 {[%clk 0:00:14.7]} 19... Nh5 {[%clk 0:01:55.8]}
20. bxc5 {[%clk 0:00:10.4]} 20... bxc5 {[%clk 0:01:55.2]} 21. Be2 {[%clk
0:00:05.5]} 21... Nf4 {[%clk 0:01:48.6]} 22. Bf3 {[%clk 0:00:01.8]} 22... Nxh3+
{[%clk 0:01:42.3]} 0-1

[Event "Early-Titled-Tuesday-Blitz-October-17-2023"]
[Site "Chess.com"]
[Date "2023.10.17"]
[Round "4"]
[White "surrenderPLS"]
[Black "Susal_De_Silva"]
[Result "0-1"]
[WhiteElo "2511"]
[BlackElo "2668"]
[TimeControl "180+1"]
[EndTime "8:39:32 PDT"]
[Termination "Susal_De_Silva won by resignation"]

1. e4 {[%clk 0:01:30.5]} 1... g6 {[%clk 0:02:59]} 2. d4 {[%clk 0:01:30.3]} 2...
Bg7 {[%clk 0:02:59.3]} 3. Nc3 {[%clk 0:01:30.4]} 3... d6 {[%clk 0:03:00.2]} 4.
Nf3 {[%clk 0:01:30.3]} 4... Nd7 {[%clk 0:03:00.8]} 5. Bc4 {[%clk 0:01:27.6]}
5... e6 {[%clk 0:03:01]} 6. h4 {[%clk 0:01:26.5]} 6... h6 {[%clk 0:03:00.7]} 7.
a4 {[%clk 0:01:20.7]} 7... a6 {[%clk 0:02:58.1]} 8. Be3 {[%clk 0:01:20.6]} 8...
b6 {[%clk 0:02:58.3]} 9. Qe2 {[%clk 0:01:09.1]} 9... Bb7 {[%clk 0:02:58.2]} 10.
O-O-O {[%clk 0:01:08.5]} 10... Ne7 {[%clk 0:02:57.7]} 11. d5 {[%clk 0:01:01]}
11... e5 {[%clk 0:02:50.7]} 12. g4 {[%clk 0:00:53.6]} 12... Nf6 {[%clk 0:02:43]}
13. g5 {[%clk 0:00:42.4]} 13... Nh5 {[%clk 0:02:43.3]} 14. gxh6 {[%clk 0:00:39]}
14... Bxh6 {[%clk 0:02:44.2]} 15. Ng5 {[%clk 0:00:38.3]} 15... Qd7 {[%clk
0:02:41.4]} 16. Qf3 {[%clk 0:00:25.8]} 16... Ng8 {[%clk 0:02:39.9]} 17. Bf1
{[%clk 0:00:18.3]} 17... Ngf6 {[%clk 0:02:35.5]} 18. Bh3 {[%clk 0:00:18.4]}
18... Qe7 {[%clk 0:02:36.2]} 19. Rhg1 {[%clk 0:00:18.7]} 19... Bc8 {[%clk
0:02:36.1]} 20. Bxc8 {[%clk 0:00:15.5]} 20... Rxc8 {[%clk 0:02:37]} 21. Kb1
{[%clk 0:00:16]} 21... Qd7 {[%clk 0:02:35.7]} 22. b3 {[%clk 0:00:15.7]} 22... b5
{[%clk 0:01:57.8]} 23. axb5 {[%clk 0:00:15.4]} 23... axb5 {[%clk 0:01:58.7]} 24.
Kb2 {[%clk 0:00:15.2]} 24... c6 {[%clk 0:01:56]} 25. Bc1 {[%clk 0:00:10.9]}
25... b4 {[%clk 0:01:55.2]} 26. Na4 {[%clk 0:00:10.6]} 26... Qc7 {[%clk
0:01:51.3]} 27. dxc6 {[%clk 0:00:10.7]} 27... Qxc6 {[%clk 0:01:52.2]} 28. Qc3
{[%clk 0:00:10.9]} 28... bxc3+ {[%clk 0:01:51.9]} 0-1

[Event "Early-Titled-Tuesday-Blitz-October-17-2023"]
[Site "Chess.com"]
[Date "2023.10.17"]
[Round "4"]
[White "kirillshevchenko"]
[Black "kingofthenil"]
[Result "1-0"]
[WhiteElo "2931"]
[BlackElo "2714"]
[TimeControl "180+1"]
[EndTime "8:39:41 PDT"]
[Termination "kirillshevchenko won by checkmate"]

1. d4 {[%clk 0:03:00.5]} 1... d5 {[%clk 0:02:59.2]} 2. Nf3 {[%clk 0:02:59.9]}
2... e6 {[%clk 0:02:58.7]} 3. Bf4 {[%clk 0:02:57.2]} 3... Nf6 {[%clk 0:02:56.8]}
4. e3 {[%clk 0:02:57.3]} 4... c5 {[%clk 0:02:57.2]} 5. Nbd2 {[%clk 0:02:54.9]}
5... Nc6 {[%clk 0:02:57.4]} 6. c3 {[%clk 0:02:55.3]} 6... Nh5 {[%clk 0:02:55.8]}
7. Bg5 {[%clk 0:02:53.1]} 7... Qb6 {[%clk 0:02:51.3]} 8. Qb3 {[%clk 0:02:37.7]}
8... h6 {[%clk 0:02:48.5]} 9. Bh4 {[%clk 0:02:37.5]} 9... g5 {[%clk 0:02:48.4]}
10. Bg3 {[%clk 0:02:37.2]} 10... Bg7 {[%clk 0:02:34.6]} 11. Bd6 {[%clk
0:02:35.3]} 11... c4 {[%clk 0:02:32.9]} 12. Qa3 {[%clk 0:02:34.3]} 12... a5
{[%clk 0:02:07.6]} 13. b3 {[%clk 0:02:28.5]} 13... cxb3 {[%clk 0:02:05.8]} 14.
axb3 {[%clk 0:02:27]} 14... Nf6 {[%clk 0:02:06]} 15. Bd3 {[%clk 0:02:25.7]}
15... Qd8 {[%clk 0:01:56.2]} 16. h4 {[%clk 0:02:20.3]} 16... g4 {[%clk
0:01:55.4]} 17. Ne5 {[%clk 0:02:20.3]} 17... Nxe5 {[%clk 0:01:55.9]} 18. dxe5
{[%clk 0:02:20.6]} 18... Nd7 {[%clk 0:01:55.4]} 19. f4 {[%clk 0:02:09.9]} 19...
gxf3 {[%clk 0:01:49.6]} 20. Nxf3 {[%clk 0:02:10]} 20... Qb6 {[%clk 0:01:50.2]}
21. Kd2 {[%clk 0:02:06.4]} 21... Rg8 {[%clk 0:01:46.9]} 22. Bh7 {[%clk
0:01:57.7]} 22... Rh8 {[%clk 0:01:47]} 23. Bd3 {[%clk 0:01:58.1]} 23... Rg8
{[%clk 0:01:47.4]} 24. g4 {[%clk 0:01:53.6]} 24... Bf8 {[%clk 0:01:47.7]} 25. g5
{[%clk 0:01:52.5]} 25... Nxe5 {[%clk 0:01:44.3]} 26. Bb5+ {[%clk 0:01:18.3]}
26... Bd7 {[%clk 0:01:31.8]} 27. Nxe5 {[%clk 0:01:08.2]} 27... Bxd6 {[%clk
0:01:19.3]} 28. Nxd7 {[%clk 0:01:05.1]} 28... Qxb5 {[%clk 0:01:10.4]} 29. Nf6+
{[%clk 0:01:05.2]} 29... Ke7 {[%clk 0:01:09.6]} 30. Nxg8+ {[%clk 0:01:05.5]}
30... Rxg8 {[%clk 0:01:10.2]} 31. Qxa5 {[%clk 0:01:01.5]} 31... Qxb3 {[%clk
0:01:06.4]} 32. Rhb1 {[%clk 0:00:54.9]} 32... Qc4 {[%clk 0:01:06.8]} 33. Rxb7+
{[%clk 0:00:55]} 33... Kf8 {[%clk 0:01:07.7]} 34. Qd8+ {[%clk 0:00:55.2]} 34...
Kg7 {[%clk 0:01:07.5]} 35. Qf6+ {[%clk 0:00:54.5]} 35... Kh7 {[%clk 0:01:05.8]}
36. Qxf7+ {[%clk 0:00:53.7]} 36... Kh8 {[%clk 0:01:05.2]} 37. Qh7# {[%clk
0:00:53]} 1-0

[Event "Early-Titled-Tuesday-Blitz-October-17-2023"]
[Site "Chess.com"]
[Date "2023.10.17"]
[Round "4"]
[White "Martial2008"]
[Black "Fore_Man"]
[Result "1-0"]
[WhiteElo "2621"]
[BlackElo "2338"]
[TimeControl "180+1"]
[EndTime "8:39:44 PDT"]
[Termination "Martial2008 won by resignation"]

1. d4 {[%clk 0:03:00.9]} 1... Nf6 {[%clk 0:02:59.4]} 2. Nf3 {[%clk 0:03:01.8]}
2... e6 {[%clk 0:02:59.4]} 3. Bg5 {[%clk 0:03:00.4]} 3... Be7 {[%clk 0:02:58.5]}
4. Nbd2 {[%clk 0:02:54.2]} 4... c5 {[%clk 0:02:58.2]} 5. e3 {[%clk 0:02:53.3]}
5... Nc6 {[%clk 0:02:57.3]} 6. c3 {[%clk 0:02:51.3]} 6... d5 {[%clk 0:02:56.5]}
7. Bd3 {[%clk 0:02:47.9]} 7... Qc7 {[%clk 0:02:51.8]} 8. O-O {[%clk 0:02:44.6]}
8... O-O {[%clk 0:02:50]} 9. dxc5 {[%clk 0:02:42.4]} 9... Bxc5 {[%clk
0:02:48.4]} 10. Qc2 {[%clk 0:02:41.7]} 10... h6 {[%clk 0:02:42.7]} 11. Bxf6
{[%clk 0:02:40.8]} 11... gxf6 {[%clk 0:02:43.6]} 12. e4 {[%clk 0:02:41.5]} 12...
dxe4 {[%clk 0:02:40.1]} 13. Nxe4 {[%clk 0:02:42.4]} 13... Be7 {[%clk 0:02:40.3]}
14. Rfe1 {[%clk 0:02:33.3]} 14... e5 {[%clk 0:02:39.8]} 15. Ng3 {[%clk
0:02:25.8]} 15... Be6 {[%clk 0:02:36.3]} 16. Nf5 {[%clk 0:02:25.2]} 16... Bxf5
{[%clk 0:02:35]} 17. Bxf5 {[%clk 0:02:26.1]} 17... Kg7 {[%clk 0:02:35.3]} 18.
Re4 {[%clk 0:02:25.2]} 18... Rg8 {[%clk 0:02:28.6]} 19. Rg4+ {[%clk 0:02:19.9]}
19... Kf8 {[%clk 0:02:28.6]} 20. Rxg8+ {[%clk 0:02:15.6]} 20... Kxg8 {[%clk
0:02:29.5]} 21. Rd1 {[%clk 0:02:04.4]} 21... Rd8 {[%clk 0:02:27.8]} 22. Be4
{[%clk 0:02:03.5]} 22... Rxd1+ {[%clk 0:02:26.9]} 23. Qxd1 {[%clk 0:02:04.4]}
23... Nd8 {[%clk 0:02:24]} 24. Qd2 {[%clk 0:02:01.8]} 24... Bf8 {[%clk
0:02:20.4]} 25. h3 {[%clk 0:02:00.2]} 25... Qd6 {[%clk 0:02:18.4]} 26. Qe3
{[%clk 0:01:59.6]} 26... b6 {[%clk 0:02:16.8]} 27. Nh4 {[%clk 0:01:57.9]} 27...
Ne6 {[%clk 0:01:57.8]} 28. Qg3+ {[%clk 0:01:54.1]} 28... Ng5 {[%clk 0:01:56.8]}
29. Nf5 {[%clk 0:01:51.4]} 29... Qd1+ {[%clk 0:01:56.1]} 30. Kh2 {[%clk
0:01:51.4]} 30... Kh7 {[%clk 0:01:56.3]} 31. f3 {[%clk 0:01:51.2]} 31... Nxe4
{[%clk 0:01:41.1]} 32. fxe4 {[%clk 0:01:52.1]} 32... Qd2 {[%clk 0:01:39.3]} 33.
Qh4 {[%clk 0:01:49.2]} 33... Qg5 {[%clk 0:01:36.9]} 34. Qxg5 {[%clk 0:01:49.2]}
34... fxg5 {[%clk 0:01:37.8]} 35. g4 {[%clk 0:01:47.8]} 35... Kg6 {[%clk
0:01:36]} 36. Kg3 {[%clk 0:01:46.9]} 36... Kf6 {[%clk 0:01:36.6]} 37. h4 {[%clk
0:01:45.2]} 37... Ke6 {[%clk 0:01:34.6]} 38. h5 {[%clk 0:01:45.6]} 38... f6
{[%clk 0:01:31.2]} 39. Kf3 {[%clk 0:01:40.3]} 39... Kd7 {[%clk 0:01:26.9]} 40.
Ke2 {[%clk 0:01:40.2]} 40... Kc6 {[%clk 0:01:27.1]} 41. Kd3 {[%clk 0:01:40.7]}
41... b5 {[%clk 0:01:26.4]} 42. Kc2 {[%clk 0:01:35.8]} 42... a5 {[%clk
0:01:26.2]} 43. b3 {[%clk 0:01:33.5]} 43... b4 {[%clk 0:01:23.9]} 44. cxb4
{[%clk 0:01:32.2]} 44... axb4 {[%clk 0:01:24.8]} 45. Kd2 {[%clk 0:01:27.1]}
45... Kc5 {[%clk 0:01:22.1]} 46. Kd3 {[%clk 0:01:27.6]} 46... Kb5 {[%clk
0:01:21.6]} 47. Ne3 {[%clk 0:01:24.3]} 47... Be7 {[%clk 0:01:15.2]} 48. Nd5
{[%clk 0:01:23.9]} 48... Bd8 {[%clk 0:01:15.4]} 49. Kd2 {[%clk 0:01:22.2]} 49...
Kc5 {[%clk 0:01:14.6]} 50. Ke3 {[%clk 0:01:22.7]} 50... Kb5 {[%clk 0:01:13.5]}
51. Kd3 {[%clk 0:01:22.9]} 51... Kc5 {[%clk 0:01:13.7]} 52. Ne3 {[%clk
0:01:21.8]} 52... Kb5 {[%clk 0:01:13.1]} 53. Nf5 {[%clk 0:01:22]} 1-0